Workbook

Sheet Data Source (hidden)
B3: Date | C3: Financials | D3: Amount
B4: 1.1.2014 | C4: Revenue - Supermarkets | D4: 72
B5: 1.1.2014 | C5: Cogs - Supermarkets | D5: 47
B6: 1.1.2014 | C6: Revenue - Discounters | D6: 37
B7: 1.1.2014 | C7: Cogs - Discounters | D7: 20
B8: 1.1.2014 | C8: Revenue - Grocery | D8: 36
B9: 1.1.2014 | C9: Cogs - Grocery | D9: 17
B10: 1.1.2014 | C10: Revenue - Retail | D10: 57
B11: 1.1.2014 | C11: Cogs - Retail | D11: 32
B12: 1.1.2014 | C12: Operating expenses | D12: 95.4
B13: 1.1.2014 | C13: D&A | D13: 2
B14: 1.1.2014 | C14: Interest expenses | D14: 5
B15: 1.1.2014 | C15: Taxes | D15: 17.29
B16: 2.1.2014 | C16: Revenue - Supermarkets | D16: 75
B17: 2.1.2014 | C17: Cogs - Supermarkets | D17: 55
B18: 2.1.2014 | C18: Revenue - Discounters | D18: 26
B19: 2.1.2014 | C19: Cogs - Discounters | D19: 18
B20: 2.1.2014 | C20: Revenue - Grocery | D20: 42
B21: 2.1.2014 | C21: Cogs - Grocery | D21: 18
B22: 2.1.2014 | C22: Revenue - Retail | D22: 54
B23: 2.1.2014 | C23: Cogs - Retail | D23: 33
B24: 2.1.2014 | C24: Operating expenses | D24: 96.3
B25: 2.1.2014 | C25: D&A | D25: 2
B26: 2.1.2014 | C26: Interest expenses | D26: 5
B27: 2.1.2014 | C27: Taxes | D27: 17
B28: 3.1.2014 | C28: Revenue - Supermarkets | D28: 69
B29: 3.1.2014 | C29: Cogs - Supermarkets | D29: 58
B30: 3.1.2014 | C30: Revenue - Discounters | D30: 32
B31: 3.1.2014 | C31: Cogs - Discounters | D31: 12
B32: 3.1.2014 | C32: Revenue - Grocery | D32: 41
B33: 3.1.2014 | C33: Cogs - Grocery | D33: 11
B34: 3.1.2014 | C34: Revenue - Retail | D34: 64
B35: 3.1.2014 | C35: Cogs - Retail | D35: 35
B36: 3.1.2014 | C36: Operating expenses | D36: 96.6
B37: 3.1.2014 | C37: D&A | D37: 3
B38: 3.1.2014 | C38: Interest expenses | D38: 5
B39: 3.1.2014 | C39: Taxes | D39: 17.85
B40: 4.1.2014 | C40: Revenue - Supermarkets | D40: 68
B41: 4.1.2014 | C41: Cogs - Supermarkets | D41: 50
B42: 4.1.2014 | C42: Revenue - Discounters | D42: 29
B43: 4.1.2014 | C43: Cogs - Discounters | D43: 19
B44: 4.1.2014 | C44: Revenue - Grocery | D44: 38
B45: 4.1.2014 | C45: Cogs - Grocery | D45: 15
B46: 4.1.2014 | C46: Revenue - Retail | D46: 60
B47: 4.1.2014 | C47: Cogs - Retail | D47: 32
B48: 4.1.2014 | C48: Operating expenses | D48: 99.52
B49: 4.1.2014 | C49: D&A | D49: 2
B50: 4.1.2014 | C50: Interest expenses | D50: 5
B51: 4.1.2014 | C51: Taxes | D51: 16.89
B52: 5.1.2014 | C52: Revenue - Supermarkets | D52: 68
B53: 5.1.2014 | C53: Cogs - Supermarkets | D53: 54
B54: 5.1.2014 | C54: Revenue - Discounters | D54: 32
B55: 5.1.2014 | C55: Cogs - Discounters | D55: 19
B56: 5.1.2014 | C56: Revenue - Grocery | D56: 50
B57: 5.1.2014 | C57: Cogs - Grocery | D57: 14
B58: 5.1.2014 | C58: Revenue - Retail | D58: 64
B59: 5.1.2014 | C59: Cogs - Retail | D59: 30
B60: 5.1.2014 | C60: Operating expenses | D60: 105.92
B61: 5.1.2014 | C61: D&A | D61: 3
B62: 5.1.2014 | C62: Interest expenses | D62: 5
B63: 5.1.2014 | C63: Taxes | D63: 18.58
B64: 6.1.2014 | C64: Revenue - Supermarkets | D64: 56
B65: 6.1.2014 | C65: Cogs - Supermarkets | D65: 49
B66: 6.1.2014 | C66: Revenue - Discounters | D66: 31
B67: 6.1.2014 | C67: Cogs - Discounters | D67: 14
B68: 6.1.2014 | C68: Revenue - Grocery | D68: 36
B69: 6.1.2014 | C69: Cogs - Grocery | D69: 15
B70: 6.1.2014 | C70: Revenue - Retail | D70: 57
B71: 6.1.2014 | C71: Cogs - Retail | D71: 33
B72: 6.1.2014 | C72: Operating expenses | D72: 93.12
B73: 6.1.2014 | C73: D&A | D73: 3
B74: 6.1.2014 | C74: Interest expenses | D74: 4
B75: 6.1.2014 | C75: Taxes | D75: 15.59
B76: 7.1.2014 | C76: Revenue - Supermarkets | D76: 66
B77: 7.1.2014 | C77: Cogs - Supermarkets | D77: 55
B78: 7.1.2014 | C78: Revenue - Discounters | D78: 38
B79: 7.1.2014 | C79: Cogs - Discounters | D79: 17
B80: 7.1.2014 | C80: Revenue - Grocery | D80: 43
B81: 7.1.2014 | C81: Cogs - Grocery | D81: 17
B82: 7.1.2014 | C82: Revenue - Retail | D82: 68
B83: 7.1.2014 | C83: Cogs - Retail | D83: 33
B84: 7.1.2014 | C84: Operating expenses | D84: 114.58
B85: 7.1.2014 | C85: D&A | D85: 3
B86: 7.1.2014 | C86: Interest expenses | D86: 4
B87: 7.1.2014 | C87: Taxes | D87: 18.61
B88: 8.1.2014 | C88: Revenue - Supermarkets | D88: 57
B89: 8.1.2014 | C89: Cogs - Supermarkets | D89: 52
B90: 8.1.2014 | C90: Revenue - Discounters | D90: 35
B91: 8.1.2014 | C91: Cogs - Discounters | D91: 19
B92: 8.1.2014 | C92: Revenue - Grocery | D92: 38
B93: 8.1.2014 | C93: Cogs - Grocery | D93: 16
B94: 8.1.2014 | C94: Revenue - Retail | D94: 57
B95: 8.1.2014 | C95: Cogs - Retail | D95: 33
B96: 8.1.2014 | C96: Operating expenses | D96: 104.38
B97: 8.1.2014 | C97: D&A | D97: 3
B98: 8.1.2014 | C98: Interest expenses | D98: 5
B99: 8.1.2014 | C99: Taxes | D99: 16.13
B100: 9.1.2014 | C100: Revenue - Supermarkets | D100: 60
B101: 9.1.2014 | C101: Cogs - Supermarkets | D101: 57
B102: 9.1.2014 | C102: Revenue - Discounters | D102: 28
B103: 9.1.2014 | C103: Cogs - Discounters | D103: 11
B104: 9.1.2014 | C104: Revenue - Grocery | D104: 44
B105: 9.1.2014 | C105: Cogs - Grocery | D105: 12
B106: 9.1.2014 | C106: Revenue - Retail | D106: 67
B107: 9.1.2014 | C107: Cogs - Retail | D107: 31
B108: 9.1.2014 | C108: Operating expenses | D108: 108.5
B109: 9.1.2014 | C109: D&A | D109: 2
B110: 9.1.2014 | C110: Interest expenses | D110: 4
B111: 9.1.2014 | C111: Taxes | D111: 17.42
B112: 10.1.2014 | C112: Revenue - Supermarkets | D112: 59
B113: 10.1.2014 | C113: Cogs - Supermarkets | D113: 57
B114: 10.1.2014 | C114: Revenue - Discounters | D114: 40
B115: 10.1.2014 | C115: Cogs - Discounters | D115: 11
B116: 10.1.2014 | C116: Revenue - Grocery | D116: 35
B117: 10.1.2014 | C117: Cogs - Grocery | D117: 15
B118: 10.1.2014 | C118: Revenue - Retail | D118: 61
B119: 10.1.2014 | C119: Cogs - Retail | D119: 35
B120: 10.1.2014 | C120: Operating expenses | D120: 97.03
B121: 10.1.2014 | C121: D&A | D121: 3
B122: 10.1.2014 | C122: Interest expenses | D122: 4
B123: 10.1.2014 | C123: Taxes | D123: 16.77
B124: 11.1.2014 | C124: Revenue - Supermarkets | D124: 69
B125: 11.1.2014 | C125: Cogs - Supermarkets | D125: 45
B126: 11.1.2014 | C126: Revenue - Discounters | D126: 25
B127: 11.1.2014 | C127: Cogs - Discounters | D127: 17
B128: 11.1.2014 | C128: Revenue - Grocery | D128: 45
B129: 11.1.2014 | C129: Cogs - Grocery | D129: 10
B130: 11.1.2014 | C130: Revenue - Retail | D130: 63
B131: 11.1.2014 | C131: Cogs - Retail | D131: 31
B132: 11.1.2014 | C132: Operating expenses | D132: 97.6
B133: 11.1.2014 | C133: D&A | D133: 2
B134: 11.1.2014 | C134: Interest expenses | D134: 5
B135: 11.1.2014 | C135: Taxes | D135: 17.62
B136: 12.1.2014 | C136: Revenue - Supermarkets | D136: 74
B137: 12.1.2014 | C137: Cogs - Supermarkets | D137: 55
B138: 12.1.2014 | C138: Revenue - Discounters | D138: 31
B139: 12.1.2014 | C139: Cogs - Discounters | D139: 19
B140: 12.1.2014 | C140: Revenue - Grocery | D140: 42
B141: 12.1.2014 | C141: Cogs - Grocery | D141: 19
B142: 12.1.2014 | C142: Revenue - Retail | D142: 59
B143: 12.1.2014 | C143: Cogs - Retail | D143: 34
B144: 12.1.2014 | C144: Operating expenses | D144: 103.23
B145: 12.1.2014 | C145: D&A | D145: 3
B146: 12.1.2014 | C146: Interest expenses | D146: 5
B147: 12.1.2014 | C147: Taxes | D147: 17.77
B148: 1.1.2015 | C148: Revenue - Supermarkets | D148: 56
B149: 1.1.2015 | C149: Cogs - Supermarkets | D149: 49
B150: 1.1.2015 | C150: Revenue - Discounters | D150: 38
B151: 1.1.2015 | C151: Cogs - Discounters | D151: 13
B152: 1.1.2015 | C152: Revenue - Grocery | D152: 49
B153: 1.1.2015 | C153: Cogs - Grocery | D153: 13
B154: 1.1.2015 | C154: Revenue - Retail | D154: 67
B155: 1.1.2015 | C155: Cogs - Retail | D155: 30
B156: 1.1.2015 | C156: Operating expenses | D156: 107.1
B157: 1.1.2015 | C157: D&A | D157: 4
B158: 1.1.2015 | C158: Interest expenses | D158: 6
B159: 1.1.2015 | C159: Taxes | D159: 18.25
B160: 2.1.2015 | C160: Revenue - Supermarkets | D160: 73
B161: 2.1.2015 | C161: Cogs - Supermarkets | D161: 60
B162: 2.1.2015 | C162: Revenue - Discounters | D162: 40
B163: 2.1.2015 | C163: Cogs - Discounters | D163: 15
B164: 2.1.2015 | C164: Revenue - Grocery | D164: 41
B165: 2.1.2015 | C165: Cogs - Grocery | D165: 12
B166: 2.1.2015 | C166: Revenue - Retail | D166: 59
B167: 2.1.2015 | C167: Cogs - Retail | D167: 35
B168: 2.1.2015 | C168: Operating expenses | D168: 107.2
B169: 2.1.2015 | C169: D&A | D169: 3
B170: 2.1.2015 | C170: Interest expenses | D170: 5
B171: 2.1.2015 | C171: Taxes | D171: 18.23
B172: 3.1.2015 | C172: Revenue - Supermarkets | D172: 55
B173: 3.1.2015 | C173: Cogs - Supermarkets | D173: 49
B174: 3.1.2015 | C174: Revenue - Discounters | D174: 37
B175: 3.1.2015 | C175: Cogs - Discounters | D175: 20
B176: 3.1.2015 | C176: Revenue - Grocery | D176: 46
B177: 3.1.2015 | C177: Cogs - Grocery | D177: 18
B178: 3.1.2015 | C178: Revenue - Retail | D178: 56
B179: 3.1.2015 | C179: Cogs - Retail | D179: 35
B180: 3.1.2015 | C180: Operating expenses | D180: 104.28
B181: 3.1.2015 | C181: D&A | D181: 4
B182: 3.1.2015 | C182: Interest expenses | D182: 6
B183: 3.1.2015 | C183: Taxes | D183: 16.73
B184: 4.1.2015 | C184: Revenue - Supermarkets | D184: 56
B185: 4.1.2015 | C185: Cogs - Supermarkets | D185: 47
B186: 4.1.2015 | C186: Revenue - Discounters | D186: 38
B187: 4.1.2015 | C187: Cogs - Discounters | D187: 13
B188: 4.1.2015 | C188: Revenue - Grocery | D188: 41
B189: 4.1.2015 | C189: Cogs - Grocery | D189: 18
B190: 4.1.2015 | C190: Revenue - Retail | D190: 57
B191: 4.1.2015 | C191: Cogs - Retail | D191: 32
B192: 4.1.2015 | C192: Operating expenses | D192: 105.7
B193: 4.1.2015 | C193: D&A | D193: 3
B194: 4.1.2015 | C194: Interest expenses | D194: 5
B195: 4.1.2015 | C195: Taxes | D195: 16.53
B196: 5.1.2015 | C196: Revenue - Supermarkets | D196: 62
B197: 5.1.2015 | C197: Cogs - Supermarkets | D197: 46
B198: 5.1.2015 | C198: Revenue - Discounters | D198: 37
B199: 5.1.2015 | C199: Cogs - Discounters | D199: 18
B200: 5.1.2015 | C200: Revenue - Grocery | D200: 35
B201: 5.1.2015 | C201: Cogs - Grocery | D201: 17
B202: 5.1.2015 | C202: Revenue - Retail | D202: 57
... 236 more rows

Sheet BS 2014 (hidden)
A1: $ in mln | C1: 2014-12-31
A2: Receivables - Discounters | C2: 44.609
A3: Receivables - Other | C3: 33.097
A4: Receivables - Grocery | C4: 31.658
A5: Receivables - Retail | C5: 20.146
A6: Receivables - Supermarkets | C6: 14.39
A7: Trade Receivables | C7: 143.9
A9: Inventory - Discounters | C9: 29.75
A10: Inventory - Supermarkets | C10: 18.7
A11: Inventory - Grocery | C11: 16.15
A12: Inventory - Retail | C12: 11.05
A13: Inventory - Other | C13: 9.35
A14: Inventory | C14: 85
A16: PP&E - Machinery | C16: 346.475
A17: PP&E - Other | C17: 139.525
A18: PP&E - IT | C18: 125.575
A19: PP&E - Vehicles | C19: 20.925
A20: PP&E | C20: 632.5
A22: Cash - Bank Accounts | C22: 16.12
A23: Cash - T-bills | C23: 6.2
A24: Cash - Cash at hand | C24: 2.48
A25: Cash | C25: 24.8
A27: Other assets | C27: 45.9
A28: Other assets | C28: 45.9
A30: Assets | C30: 932.1
A32: Trade Payables - Discounters | C32: 17
A33: Trade Payables - Other | C33: 17
A34: Trade Payables - Supermarkets | C34: 14.96
A35: Trade Payables - Grocery | C35: 10.2
A36: Trade Payables - Retail | C36: 8.84
A37: Trade Payables | C37: 68
A39: Provisions - Taxes | C39: 22.425
A40: Provisions - Legal | C40: 6.825
A41: Provisions - Other | C41: 3.25
A42: Provisions | C42: 32.5
A44: Financial Liabilities vs. Banks | C44: 615.8
A45: Financial Liabilities | C45: 615.8
A47: Other liabilities | C47: 48.3
A48: Other liabilities | C48: 48.3
A50: Retained Earnings | C50: 132.325
A51: Minority interest | C51: 18.425
A52: Share Capital | C52: 16.75
A53: Equity | C53: 167.5
A55: Liabilities & Equity | C55: 932.1

Sheet BS 2015 (hidden)
A1: $ in mln | B1: Code I | C1: 2015-12-31
A2: Receivables - Discounters | B2: R | C2: 40.248
A3: Receivables - Grocery | B3: R | C3: 34.056
A4: Receivables - Other | B4: R | C4: 29.412
A5: Receivables - Retail | B5: R | C5: 27.864
A6: Receivables - Supermarkets | B6: R | C6: 23.22
A7: Trade Receivables | C7: 154.8
A9: Inventory - Discounters | B9: I | C9: 24.84
A10: Inventory - Supermarkets | B10: I | C10: 20.24
A11: Inventory - Grocery | B11: I | C11: 17.48
A12: Inventory - Other | B12: I | C12: 17.48
A13: Inventory - Retail | B13: I | C13: 11.96
A14: Inventory | B14: I | C14: 92
A16: PP&E - Machinery | B16: P | C16: 346.475
A17: PP&E - Other | B17: P | C17: 139.525
A18: PP&E - IT | B18: P | C18: 125.575
A19: PP&E - Vehicles | B19: P | C19: 20.925
A20: PP&E | B20: P | C20: 632.5
A22: Cash - Bank Accounts | B22: C | C22: 13.298
A23: Cash - T-bills | B23: C | C23: 5.45
A24: Cash - Cash at hand | B24: C | C24: 3.052
A25: Cash | C25: 21.8
A27: Other assets | B27: O | C27: 46.9
A28: Other assets | C28: 46.9
A30: Assets | C30: 948
A32: Trade Payables - Discounters | B32: T | C32: 19.981
A33: Trade Payables - Retail | B33: T | C33: 15.847
A34: Trade Payables - Other | B34: T | C34: 14.469
A35: Trade Payables - Grocery | B35: T | C35: 10.335
A36: Trade Payables - Supermarkets | B36: T | C36: 8.268
A37: Trade Payables | C37: 68.9
A39: Provisions - Taxes | B39: P | C39: 17.507
A40: Provisions - Legal | B40: P | C40: 6.601
A41: Provisions - Other | B41: P | C41: 4.592
A42: Provisions | C42: 28.7
A44: Financial Liabilities vs. Banks | B44: F | C44: 610.4
A45: Financial Liabilities | C45: 610.4
A47: Other liabilities | B47: O | C47: 43.3
A48: Other liabilities | C48: 43.3
A50: Retained Earnings | B50: E | C50: 161.525
A51: Minority interest | B51: E | C51: 18.425
A52: Share Capital | B52: E | C52: 16.75
A53: Equity | C53: 196.7
A55: Liabilities & Equity | C55: 948

Sheet BS 2016 (hidden)
A1: $ in mln | B1: Code I | C1: Code II | D1: 2016-12-31
A2: Receivables - Discounters | B2: R | C2: A | D2: 44.018
A3: Receivables - Grocery | B3: R | C3: A | D3: 40.632
A4: Receivables - Other | B4: R | C4: A | D4: 32.167
A5: Receivables - Retail | B5: R | C5: A | D5: 27.088
A6: Receivables - Supermarkets | B6: R | C6: A | D6: 25.395
A7: Trade Receivables | D7: 169.3
A9: Inventory - Discounters | B9: I | C9: A | D9: 26.4
A10: Inventory - Supermarkets | B10: I | C10: A | D10: 25.3
A11: Inventory - Grocery | B11: I | C11: A | D11: 20.9
A12: Inventory - Other | B12: I | C12: A | D12: 20.9
A13: Inventory - Retail | B13: I | C13: A | D13: 16.5
A14: Inventory | B14: I | D14: 110
A16: PP&E - Machinery | B16: P | C16: A | D16: 350.51
A17: PP&E - Other | B17: P | C17: A | D17: 146.71
A18: PP&E - IT | B18: P | C18: A | D18: 133.735
A19: PP&E - Vehicles | B19: P | C19: A | D19: 28.545
A20: PP&E | D20: 659.5
A22: Cash - Bank Accounts | B22: C | C22: A | D22: 125.4
A23: Cash - T-bills | B23: C | C23: A | D23: 59.4
A24: Cash - Cash at hand | B24: C | C24: A | D24: 35.2
A25: Cash | D25: 220
A27: Other assets | B27: O | C27: A | D27: 68
A28: Other assets | D28: 68
A30: Assets | D30: 1226.8
A32: Trade Payables - Discounters | B32: T | C32: L | D32: 19.981
A33: Trade Payables - Retail | B33: T | C33: L | D33: 15.847
A34: Trade Payables - Other | B34: T | C34: L | D34: 14.469
A35: Trade Payables - Grocery | B35: T | C35: L | D35: 10.335
A36: Trade Payables - Supermarkets | B36: T | C36: L | D36: 8.268
A37: Trade Payables | D37: 68.9
A39: Provisions - Taxes | B39: P | C39: L | D39: 17.507
A40: Provisions - Legal | B40: P | C40: L | D40: 6.601
A41: Provisions - Other | B41: P | C41: L | D41: 4.592
A42: Provisions | D42: 28.7
A44: Financial Liabilities vs. Banks | B44: F | C44: L | D44: 605
A45: Financial Liabilities | D45: 605
A47: Other liabilities | B47: O | C47: L | D47: 38.9
A48: Other liabilities | D48: 38.9
A50: Retained Earnings | B50: E | C50: E | D50: 450.125
A51: Minority interest | B51: E | C51: E | D51: 18.425
A52: Share Capital | B52: E | C52: E | D52: 16.75
A53: Equity | D53: 485.3
A55: Liabilities & Equity | D55: 1226.8

Sheet Exercise --> (hidden)
B13: Exercise -->

Sheet 1.1 (hidden)
B3: Date | C3: Year | D3: Financials | E3: Amount | F3: Mapping
B4: 2014-01-01 | C4: =YEAR(B4) -> 2014 | D4: Revenue - Supermarkets | E4: 72 | F4: Revenue
B5: 2014-01-01 | C5: =YEAR(B5) -> 2014 | D5: Cogs - Supermarkets | E5: 47 | F5: Cogs
B6: 2014-01-01 | C6: 2014 | D6: Revenue - Discounters | E6: 37 | F6: Revenue
B7: 2014-01-01 | C7: 2014 | D7: Cogs - Discounters | E7: 20 | F7: Cogs
B8: 2014-01-01 | C8: 2014 | D8: Revenue - Grocery | E8: 36 | F8: Revenue
B9: 2014-01-01 | C9: 2014 | D9: Cogs - Grocery | E9: 17 | F9: Cogs
B10: 2014-01-01 | C10: 2014 | D10: Revenue - Retail | E10: 57 | F10: Revenue
B11: 2014-01-01 | C11: 2014 | D11: Cogs - Retail | E11: 32 | F11: Cogs
B12: 2014-01-01 | C12: 2014 | D12: Operating expenses | E12: 95.4 | F12: Operating expenses
B13: 2014-01-01 | C13: 2014 | D13: D&A | E13: 2 | F13: D&A
B14: 2014-01-01 | C14: 2014 | D14: Interest expenses | E14: 5 | F14: Interest
B15: 2014-01-01 | C15: 2014 | D15: Taxes | E15: 17.29 | F15: Taxes
B16: 2014-02-01 | C16: 2014 | D16: Revenue - Supermarkets | E16: 75 | F16: Revenue
B17: 2014-02-01 | C17: 2014 | D17: Cogs - Supermarkets | E17: 55 | F17: Cogs
B18: 2014-02-01 | C18: 2014 | D18: Revenue - Discounters | E18: 26 | F18: Revenue
B19: 2014-02-01 | C19: 2014 | D19: Cogs - Discounters | E19: 18 | F19: Cogs
B20: 2014-02-01 | C20: 2014 | D20: Revenue - Grocery | E20: 42 | F20: Revenue
B21: 2014-02-01 | C21: 2014 | D21: Cogs - Grocery | E21: 18 | F21: Cogs
B22: 2014-02-01 | C22: 2014 | D22: Revenue - Retail | E22: 54 | F22: Revenue
B23: 2014-02-01 | C23: 2014 | D23: Cogs - Retail | E23: 33 | F23: Cogs
B24: 2014-02-01 | C24: 2014 | D24: Operating expenses | E24: 96.3 | F24: Operating expenses
B25: 2014-02-01 | C25: 2014 | D25: D&A | E25: 2 | F25: D&A
B26: 2014-02-01 | C26: 2014 | D26: Interest expenses | E26: 5 | F26: Interest
B27: 2014-02-01 | C27: 2014 | D27: Taxes | E27: 17 | F27: Taxes
B28: 2014-03-01 | C28: 2014 | D28: Revenue - Supermarkets | E28: 69 | F28: Revenue
B29: 2014-03-01 | C29: 2014 | D29: Cogs - Supermarkets | E29: 58 | F29: Cogs
B30: 2014-03-01 | C30: 2014 | D30: Revenue - Discounters | E30: 32 | F30: Revenue
B31: 2014-03-01 | C31: 2014 | D31: Cogs - Discounters | E31: 12 | F31: Cogs
B32: 2014-03-01 | C32: 2014 | D32: Revenue - Grocery | E32: 41 | F32: Revenue
B33: 2014-03-01 | C33: 2014 | D33: Cogs - Grocery | E33: 11 | F33: Cogs
B34: 2014-03-01 | C34: 2014 | D34: Revenue - Retail | E34: 64 | F34: Revenue
B35: 2014-03-01 | C35: 2014 | D35: Cogs - Retail | E35: 35 | F35: Cogs
B36: 2014-03-01 | C36: 2014 | D36: Operating expenses | E36: 96.6 | F36: Operating expenses
B37: 2014-03-01 | C37: 2014 | D37: D&A | E37: 3 | F37: D&A
B38: 2014-03-01 | C38: 2014 | D38: Interest expenses | E38: 5 | F38: Interest
B39: 2014-03-01 | C39: 2014 | D39: Taxes | E39: 17.85 | F39: Taxes
B40: 2014-04-01 | C40: 2014 | D40: Revenue - Supermarkets | E40: 68 | F40: Revenue
B41: 2014-04-01 | C41: 2014 | D41: Cogs - Supermarkets | E41: 50 | F41: Cogs
B42: 2014-04-01 | C42: 2014 | D42: Revenue - Discounters | E42: 29 | F42: Revenue
B43: 2014-04-01 | C43: 2014 | D43: Cogs - Discounters | E43: 19 | F43: Cogs
B44: 2014-04-01 | C44: 2014 | D44: Revenue - Grocery | E44: 38 | F44: Revenue
B45: 2014-04-01 | C45: 2014 | D45: Cogs - Grocery | E45: 15 | F45: Cogs
B46: 2014-04-01 | C46: 2014 | D46: Revenue - Retail | E46: 60 | F46: Revenue
B47: 2014-04-01 | C47: 2014 | D47: Cogs - Retail | E47: 32 | F47: Cogs
B48: 2014-04-01 | C48: 2014 | D48: Operating expenses | E48: 99.52 | F48: Operating expenses
B49: 2014-04-01 | C49: 2014 | D49: D&A | E49: 2 | F49: D&A
B50: 2014-04-01 | C50: 2014 | D50: Interest expenses | E50: 5 | F50: Interest
B51: 2014-04-01 | C51: 2014 | D51: Taxes | E51: 16.89 | F51: Taxes
B52: 2014-05-01 | C52: 2014 | D52: Revenue - Supermarkets | E52: 68 | F52: Revenue
B53: 2014-05-01 | C53: 2014 | D53: Cogs - Supermarkets | E53: 54 | F53: Cogs
B54: 2014-05-01 | C54: 2014 | D54: Revenue - Discounters | E54: 32 | F54: Revenue
B55: 2014-05-01 | C55: 2014 | D55: Cogs - Discounters | E55: 19 | F55: Cogs
B56: 2014-05-01 | C56: 2014 | D56: Revenue - Grocery | E56: 50 | F56: Revenue
B57: 2014-05-01 | C57: 2014 | D57: Cogs - Grocery | E57: 14 | F57: Cogs
B58: 2014-05-01 | C58: 2014 | D58: Revenue - Retail | E58: 64 | F58: Revenue
B59: 2014-05-01 | C59: 2014 | D59: Cogs - Retail | E59: 30 | F59: Cogs
B60: 2014-05-01 | C60: 2014 | D60: Operating expenses | E60: 105.92 | F60: Operating expenses
B61: 2014-05-01 | C61: 2014 | D61: D&A | E61: 3 | F61: D&A
B62: 2014-05-01 | C62: 2014 | D62: Interest expenses | E62: 5 | F62: Interest
B63: 2014-05-01 | C63: 2014 | D63: Taxes | E63: 18.58 | F63: Taxes
B64: 2014-06-01 | C64: 2014 | D64: Revenue - Supermarkets | E64: 56 | F64: Revenue
B65: 2014-06-01 | C65: 2014 | D65: Cogs - Supermarkets | E65: 49 | F65: Cogs
B66: 2014-06-01 | C66: 2014 | D66: Revenue - Discounters | E66: 31 | F66: Revenue
B67: 2014-06-01 | C67: 2014 | D67: Cogs - Discounters | E67: 14 | F67: Cogs
B68: 2014-06-01 | C68: 2014 | D68: Revenue - Grocery | E68: 36 | F68: Revenue
B69: 2014-06-01 | C69: =YEAR(B69) -> 2014 | D69: Cogs - Grocery | E69: 15 | F69: Cogs
B70: 2014-06-01 | C70: 2014 | D70: Revenue - Retail | E70: 57 | F70: Revenue
B71: 2014-06-01 | C71: 2014 | D71: Cogs - Retail | E71: 33 | F71: Cogs
B72: 2014-06-01 | C72: 2014 | D72: Operating expenses | E72: 93.12 | F72: Operating expenses
B73: 2014-06-01 | C73: 2014 | D73: D&A | E73: 3 | F73: D&A
B74: 2014-06-01 | C74: 2014 | D74: Interest expenses | E74: 4 | F74: Interest
B75: 2014-06-01 | C75: 2014 | D75: Taxes | E75: 15.59 | F75: Taxes
B76: 2014-07-01 | C76: 2014 | D76: Revenue - Supermarkets | E76: 66 | F76: Revenue
B77: 2014-07-01 | C77: 2014 | D77: Cogs - Supermarkets | E77: 55 | F77: Cogs
B78: 2014-07-01 | C78: 2014 | D78: Revenue - Discounters | E78: 38 | F78: Revenue
B79: 2014-07-01 | C79: 2014 | D79: Cogs - Discounters | E79: 17 | F79: Cogs
B80: 2014-07-01 | C80: 2014 | D80: Revenue - Grocery | E80: 43 | F80: Revenue
B81: 2014-07-01 | C81: 2014 | D81: Cogs - Grocery | E81: 17 | F81: Cogs
B82: 2014-07-01 | C82: 2014 | D82: Revenue - Retail | E82: 68 | F82: Revenue
B83: 2014-07-01 | C83: 2014 | D83: Cogs - Retail | E83: 33 | F83: Cogs
B84: 2014-07-01 | C84: 2014 | D84: Operating expenses | E84: 114.58 | F84: Operating expenses
B85: 2014-07-01 | C85: 2014 | D85: D&A | E85: 3 | F85: D&A
B86: 2014-07-01 | C86: 2014 | D86: Interest expenses | E86: 4 | F86: Interest
B87: 2014-07-01 | C87: 2014 | D87: Taxes | E87: 18.61 | F87: Taxes
B88: 2014-08-01 | C88: 2014 | D88: Revenue - Supermarkets | E88: 57 | F88: Revenue
B89: 2014-08-01 | C89: 2014 | D89: Cogs - Supermarkets | E89: 52 | F89: Cogs
B90: 2014-08-01 | C90: 2014 | D90: Revenue - Discounters | E90: 35 | F90: Revenue
B91: 2014-08-01 | C91: 2014 | D91: Cogs - Discounters | E91: 19 | F91: Cogs
B92: 2014-08-01 | C92: 2014 | D92: Revenue - Grocery | E92: 38 | F92: Revenue
B93: 2014-08-01 | C93: 2014 | D93: Cogs - Grocery | E93: 16 | F93: Cogs
B94: 2014-08-01 | C94: 2014 | D94: Revenue - Retail | E94: 57 | F94: Revenue
B95: 2014-08-01 | C95: 2014 | D95: Cogs - Retail | E95: 33 | F95: Cogs
B96: 2014-08-01 | C96: 2014 | D96: Operating expenses | E96: 104.38 | F96: Operating expenses
B97: 2014-08-01 | C97: 2014 | D97: D&A | E97: 3 | F97: D&A
B98: 2014-08-01 | C98: 2014 | D98: Interest expenses | E98: 5 | F98: Interest
B99: 2014-08-01 | C99: 2014 | D99: Taxes | E99: 16.13 | F99: Taxes
B100: 2014-09-01 | C100: 2014 | D100: Revenue - Supermarkets | E100: 60 | F100: Revenue
B101: 2014-09-01 | C101: 2014 | D101: Cogs - Supermarkets | E101: 57 | F101: Cogs
B102: 2014-09-01 | C102: 2014 | D102: Revenue - Discounters | E102: 28 | F102: Revenue
B103: 2014-09-01 | C103: 2014 | D103: Cogs - Discounters | E103: 11 | F103: Cogs
B104: 2014-09-01 | C104: 2014 | D104: Revenue - Grocery | E104: 44 | F104: Revenue
B105: 2014-09-01 | C105: 2014 | D105: Cogs - Grocery | E105: 12 | F105: Cogs
B106: 2014-09-01 | C106: 2014 | D106: Revenue - Retail | E106: 67 | F106: Revenue
B107: 2014-09-01 | C107: 2014 | D107: Cogs - Retail | E107: 31 | F107: Cogs
B108: 2014-09-01 | C108: 2014 | D108: Operating expenses | E108: 108.5 | F108: Operating expenses
B109: 2014-09-01 | C109: 2014 | D109: D&A | E109: 2 | F109: D&A
B110: 2014-09-01 | C110: 2014 | D110: Interest expenses | E110: 4 | F110: Interest
B111: 2014-09-01 | C111: 2014 | D111: Taxes | E111: 17.42 | F111: Taxes
B112: 2014-10-01 | C112: 2014 | D112: Revenue - Supermarkets | E112: 59 | F112: Revenue
B113: 2014-10-01 | C113: 2014 | D113: Cogs - Supermarkets | E113: 57 | F113: Cogs
B114: 2014-10-01 | C114: 2014 | D114: Revenue - Discounters | E114: 40 | F114: Revenue
B115: 2014-10-01 | C115: 2014 | D115: Cogs - Discounters | E115: 11 | F115: Cogs
B116: 2014-10-01 | C116: 2014 | D116: Revenue - Grocery | E116: 35 | F116: Revenue
B117: 2014-10-01 | C117: 2014 | D117: Cogs - Grocery | E117: 15 | F117: Cogs
B118: 2014-10-01 | C118: 2014 | D118: Revenue - Retail | E118: 61 | F118: Revenue
B119: 2014-10-01 | C119: 2014 | D119: Cogs - Retail | E119: 35 | F119: Cogs
B120: 2014-10-01 | C120: 2014 | D120: Operating expenses | E120: 97.03 | F120: Operating expenses
B121: 2014-10-01 | C121: 2014 | D121: D&A | E121: 3 | F121: D&A
B122: 2014-10-01 | C122: 2014 | D122: Interest expenses | E122: 4 | F122: Interest
B123: 2014-10-01 | C123: 2014 | D123: Taxes | E123: 16.77 | F123: Taxes
B124: 2014-11-01 | C124: 2014 | D124: Revenue - Supermarkets | E124: 69 | F124: Revenue
B125: 2014-11-01 | C125: 2014 | D125: Cogs - Supermarkets | E125: 45 | F125: Cogs
B126: 2014-11-01 | C126: 2014 | D126: Revenue - Discounters | E126: 25 | F126: Revenue
B127: 2014-11-01 | C127: 2014 | D127: Cogs - Discounters | E127: 17 | F127: Cogs
B128: 2014-11-01 | C128: 2014 | D128: Revenue - Grocery | E128: 45 | F128: Revenue
B129: 2014-11-01 | C129: 2014 | D129: Cogs - Grocery | E129: 10 | F129: Cogs
B130: 2014-11-01 | C130: 2014 | D130: Revenue - Retail | E130: 63 | F130: Revenue
B131: 2014-11-01 | C131: 2014 | D131: Cogs - Retail | E131: 31 | F131: Cogs
B132: 2014-11-01 | C132: 2014 | D132: Operating expenses | E132: 97.6 | F132: Operating expenses
B133: 2014-11-01 | C133: =YEAR(B133) -> 2014 | D133: D&A | E133: 2 | F133: D&A
B134: 2014-11-01 | C134: 2014 | D134: Interest expenses | E134: 5 | F134: Interest
B135: 2014-11-01 | C135: 2014 | D135: Taxes | E135: 17.62 | F135: Taxes
B136: 2014-12-01 | C136: 2014 | D136: Revenue - Supermarkets | E136: 74 | F136: Revenue
B137: 2014-12-01 | C137: 2014 | D137: Cogs - Supermarkets | E137: 55 | F137: Cogs
B138: 2014-12-01 | C138: 2014 | D138: Revenue - Discounters | E138: 31 | F138: Revenue
B139: 2014-12-01 | C139: 2014 | D139: Cogs - Discounters | E139: 19 | F139: Cogs
B140: 2014-12-01 | C140: 2014 | D140: Revenue - Grocery | E140: 42 | F140: Revenue
B141: 2014-12-01 | C141: 2014 | D141: Cogs - Grocery | E141: 19 | F141: Cogs
B142: 2014-12-01 | C142: 2014 | D142: Revenue - Retail | E142: 59 | F142: Revenue
B143: 2014-12-01 | C143: 2014 | D143: Cogs - Retail | E143: 34 | F143: Cogs
B144: 2014-12-01 | C144: 2014 | D144: Operating expenses | E144: 103.23 | F144: Operating expenses
B145: 2014-12-01 | C145: 2014 | D145: D&A | E145: 3 | F145: D&A
B146: 2014-12-01 | C146: 2014 | D146: Interest expenses | E146: 5 | F146: Interest
B147: 2014-12-01 | C147: 2014 | D147: Taxes | E147: 17.77 | F147: Taxes
B148: 2015-01-01 | C148: 2015 | D148: Revenue - Supermarkets | E148: 56 | F148: Revenue
B149: 2015-01-01 | C149: 2015 | D149: Cogs - Supermarkets | E149: 49 | F149: Cogs
B150: 2015-01-01 | C150: 2015 | D150: Revenue - Discounters | E150: 38 | F150: Revenue
B151: 2015-01-01 | C151: 2015 | D151: Cogs - Discounters | E151: 13 | F151: Cogs
B152: 2015-01-01 | C152: 2015 | D152: Revenue - Grocery | E152: 49 | F152: Revenue
B153: 2015-01-01 | C153: 2015 | D153: Cogs - Grocery | E153: 13 | F153: Cogs
B154: 2015-01-01 | C154: 2015 | D154: Revenue - Retail | E154: 67 | F154: Revenue
B155: 2015-01-01 | C155: 2015 | D155: Cogs - Retail | E155: 30 | F155: Cogs
B156: 2015-01-01 | C156: 2015 | D156: Operating expenses | E156: 107.1 | F156: Operating expenses
B157: 2015-01-01 | C157: 2015 | D157: D&A | E157: 4 | F157: D&A
B158: 2015-01-01 | C158: 2015 | D158: Interest expenses | E158: 6 | F158: Interest
B159: 2015-01-01 | C159: 2015 | D159: Taxes | E159: 18.25 | F159: Taxes
B160: 2015-02-01 | C160: 2015 | D160: Revenue - Supermarkets | E160: 73 | F160: Revenue
B161: 2015-02-01 | C161: 2015 | D161: Cogs - Supermarkets | E161: 60 | F161: Cogs
B162: 2015-02-01 | C162: 2015 | D162: Revenue - Discounters | E162: 40 | F162: Revenue
B163: 2015-02-01 | C163: 2015 | D163: Cogs - Discounters | E163: 15 | F163: Cogs
B164: 2015-02-01 | C164: 2015 | D164: Revenue - Grocery | E164: 41 | F164: Revenue
B165: 2015-02-01 | C165: 2015 | D165: Cogs - Grocery | E165: 12 | F165: Cogs
B166: 2015-02-01 | C166: 2015 | D166: Revenue - Retail | E166: 59 | F166: Revenue
B167: 2015-02-01 | C167: 2015 | D167: Cogs - Retail | E167: 35 | F167: Cogs
B168: 2015-02-01 | C168: 2015 | D168: Operating expenses | E168: 107.2 | F168: Operating expenses
B169: 2015-02-01 | C169: 2015 | D169: D&A | E169: 3 | F169: D&A
B170: 2015-02-01 | C170: 2015 | D170: Interest expenses | E170: 5 | F170: Interest
B171: 2015-02-01 | C171: 2015 | D171: Taxes | E171: 18.23 | F171: Taxes
B172: 2015-03-01 | C172: 2015 | D172: Revenue - Supermarkets | E172: 55 | F172: Revenue
B173: 2015-03-01 | C173: 2015 | D173: Cogs - Supermarkets | E173: 49 | F173: Cogs
B174: 2015-03-01 | C174: 2015 | D174: Revenue - Discounters | E174: 37 | F174: Revenue
B175: 2015-03-01 | C175: 2015 | D175: Cogs - Discounters | E175: 20 | F175: Cogs
B176: 2015-03-01 | C176: 2015 | D176: Revenue - Grocery | E176: 46 | F176: Revenue
B177: 2015-03-01 | C177: 2015 | D177: Cogs - Grocery | E177: 18 | F177: Cogs
B178: 2015-03-01 | C178: 2015 | D178: Revenue - Retail | E178: 56 | F178: Revenue
B179: 2015-03-01 | C179: 2015 | D179: Cogs - Retail | E179: 35 | F179: Cogs
B180: 2015-03-01 | C180: 2015 | D180: Operating expenses | E180: 104.28 | F180: Operating expenses
B181: 2015-03-01 | C181: 2015 | D181: D&A | E181: 4 | F181: D&A
B182: 2015-03-01 | C182: 2015 | D182: Interest expenses | E182: 6 | F182: Interest
B183: 2015-03-01 | C183: 2015 | D183: Taxes | E183: 16.73 | F183: Taxes
B184: 2015-04-01 | C184: 2015 | D184: Revenue - Supermarkets | E184: 56 | F184: Revenue
B185: 2015-04-01 | C185: 2015 | D185: Cogs - Supermarkets | E185: 47 | F185: Cogs
B186: 2015-04-01 | C186: 2015 | D186: Revenue - Discounters | E186: 38 | F186: Revenue
B187: 2015-04-01 | C187: 2015 | D187: Cogs - Discounters | E187: 13 | F187: Cogs
B188: 2015-04-01 | C188: 2015 | D188: Revenue - Grocery | E188: 41 | F188: Revenue
B189: 2015-04-01 | C189: 2015 | D189: Cogs - Grocery | E189: 18 | F189: Cogs
B190: 2015-04-01 | C190: 2015 | D190: Revenue - Retail | E190: 57 | F190: Revenue
B191: 2015-04-01 | C191: 2015 | D191: Cogs - Retail | E191: 32 | F191: Cogs
B192: 2015-04-01 | C192: 2015 | D192: Operating expenses | E192: 105.7 | F192: Operating expenses
B193: 2015-04-01 | C193: 2015 | D193: D&A | E193: 3 | F193: D&A
B194: 2015-04-01 | C194: 2015 | D194: Interest expenses | E194: 5 | F194: Interest
B195: 2015-04-01 | C195: 2015 | D195: Taxes | E195: 16.53 | F195: Taxes
B196: 2015-05-01 | C196: 2015 | D196: Revenue - Supermarkets | E196: 62 | F196: Revenue
B197: 2015-05-01 | C197: =YEAR(B197) -> 2015 | D197: Cogs - Supermarkets | E197: 46 | F197: Cogs
B198: 2015-05-01 | C198: 2015 | D198: Revenue - Discounters | E198: 37 | F198: Revenue
B199: 2015-05-01 | C199: 2015 | D199: Cogs - Discounters | E199: 18 | F199: Cogs
B200: 2015-05-01 | C200: 2015 | D200: Revenue - Grocery | E200: 35 | F200: Revenue
B201: 2015-05-01 | C201: 2015 | D201: Cogs - Grocery | E201: 17 | F201: Cogs
B202: 2015-05-01 | C202: 2015 | D202: Revenue - Retail | E202: 57 | F202: Revenue
... 236 more rows

Sheet P&L
B1: P&L
B3: Scenario: | C3: Base Case
J4: Forecast
B5: $ in MM | C5: 2014 | D5: 2015 | E5: 2016 | G5: Var % 14-15 | H5: Var % 15-16 | J5: =E5+1 -> 2017 | K5: =J5+1 -> 2018 | L5: =K5+1 -> 2019 | M5: 2020 | N5: 2021
B6: Revenue | C6: =SUMIFS('1.1'!$E:$E,'1.1'!$C:$C,'P&L'!C$5,'1.1'!$F:$F,'P&L'!$B6) -> 2922 | D6: =SUMIFS('1.1'!$E:$E,'1.1'!$C:$C,'P&L'!D$5,'1.1'!$F:$F,'P&L'!$B6) -> 2984 | E6: =SUMIFS('1.1'!$E:$E,'1.1'!$C:$C,'P&L'!E$5,'1.1'!$F:$F,'P&L'!$B6) -> 3040 | G6: =D6/C6-1 -> 0.0212183436 | H6: =E6/D6-1 -> 0.01876675603 | J6: =E6*(1+J20) -> 3100.8 | K6: =J6*(1+K20) -> 3162.816 | L6: =K6*(1+L20) -> 3226.07232 | M6: 3290.593766 | N6: 3356.405642
B7: Cogs | C7: =-SUMIFS('1.1'!$E:$E,'1.1'!$C:$C,'P&L'!C$5,'1.1'!$F:$F,'P&L'!$B7) -> -1401 | D7: =-SUMIFS('1.1'!$E:$E,'1.1'!$C:$C,'P&L'!D$5,'1.1'!$F:$F,'P&L'!$B7) -> -1383 | E7: =-SUMIFS('1.1'!$E:$E,'1.1'!$C:$C,'P&L'!E$5,'1.1'!$F:$F,'P&L'!$B7) -> -1367 | G7: =D7/C7-1 -> -0.01284796574 | H7: =E7/D7-1 -> -0.01156905278 | J7: =J6*J26 -> -1439.400685 | K7: =K6*K26 -> -1468.188698 | L7: -1497.552472 | M7: -1527.503522 | N7: -1558.053592
B8: Gross Profit | C8: =SUM(C6:C7) -> 1521 | D8: =SUM(D6:D7) -> 1601 | E8: 1673 | G8: 0.05259697567 | H8: 0.04497189257 | J8: =SUM(J6:J7) -> 1661.399315 | K8: =SUM(K6:K7) -> 1694.627302 | L8: =SUM(L6:L7) -> 1728.519848 | M8: =SUM(M6:M7) -> 1763.090245 | N8: =SUM(N6:N7) -> 1798.352049
B9: Operating Expenses | C9: =-SUMIFS('1.1'!$E:$E,'1.1'!$C:$C,'P&L'!C$5,'1.1'!$F:$F,'P&L'!$B9) -> -1212.18 | D9: =-SUMIFS('1.1'!$E:$E,'1.1'!$C:$C,'P&L'!D$5,'1.1'!$F:$F,'P&L'!$B9) -> -1245.34 | E9: =-SUMIFS('1.1'!$E:$E,'1.1'!$C:$C,'P&L'!E$5,'1.1'!$F:$F,'P&L'!$B9) -> -1068.24 | G9: 0.02735567325 | H9: -0.1422101595 | J9: =J6*J32 -> -1223.348159 | K9: =K6*K32 -> -1247.815122 | L9: -1272.771424 | M9: -1298.226853 | N9: =N6*N32 -> -1324.19139
B10: EBITDA | C10: =SUM(C8:C9) -> 308.82 | D10: =SUM(D8:D9) -> 355.66 | E10: 604.76 | G10: 0.1516741144 | H10: 0.700388011 | J10: =SUM(J8:J9) -> 438.0511567 | K10: =SUM(K8:K9) -> 446.8121798 | L10: =SUM(L8:L9) -> 455.7484234 | M10: =SUM(M8:M9) -> 464.8633919 | N10: =SUM(N8:N9) -> 474.1606597
B11: D&A | C11: =-SUMIFS('1.1'!$E:$E,'1.1'!$C:$C,'P&L'!C$5,'1.1'!$F:$F,'P&L'!$B11) -> -31 | D11: =-SUMIFS('1.1'!$E:$E,'1.1'!$C:$C,'P&L'!D$5,'1.1'!$F:$F,'P&L'!$B11) -> -44 | E11: =-SUMIFS('1.1'!$E:$E,'1.1'!$C:$C,'P&L'!E$5,'1.1'!$F:$F,'P&L'!$B11) -> -41 | G11: 0.4193548387 | H11: -0.06818181818 | J11: ='FA Roll Forward PPE'!F6 -> -44.31422925 | K11: ='FA Roll Forward PPE'!G6 -> -45.26006655 | L11: ='FA Roll Forward PPE'!H6 -> -46.22609169 | M11: ='FA Roll Forward PPE'!I6 -> -47.21273554 | N11: ='FA Roll Forward PPE'!J6 -> -48.2204382
B12: EBIT | C12: =SUM(C10:C11) -> 277.82 | D12: =SUM(D10:D11) -> 311.66 | E12: 563.76 | G12: 0.1218054856 | H12: 0.8088943079 | J12: =SUM(J10:J11) -> 393.7369274 | K12: =SUM(K10:K11) -> 401.5521132 | L12: =SUM(L10:L11) -> 409.5223317 | M12: =SUM(M10:M11) -> 417.6506563 | N12: =SUM(N10:N11) -> 425.9402215
B13: Interest | C13: =-SUMIFS('1.1'!$E:$E,'1.1'!$C:$C,'P&L'!C$5,'1.1'!$F:$F,'P&L'!$B13) -> -56 | D13: =-SUMIFS('1.1'!$E:$E,'1.1'!$C:$C,'P&L'!D$5,'1.1'!$F:$F,'P&L'!$B13) -> -65 | E13: =-SUMIFS('1.1'!$E:$E,'1.1'!$C:$C,'P&L'!E$5,'1.1'!$F:$F,'P&L'!$B13) -> -52 | G13: 0.1607142857 | H13: -0.2 | J13: ='Financial Liabilities'!C17 -> -54.45 | K13: ='Financial Liabilities'!D17 -> -50.8660961 | L13: ='Financial Liabilities'!E17 -> -46.95964086 | M13: ='Financial Liabilities'!F17 -> -42.70160464 | N13: ='Financial Liabilities'!G17 -> -38.06034516
B14: EBT | C14: =SUM(C12:C13) -> 221.82 | D14: =SUM(D12:D13) -> 246.66 | E14: 511.76 | G14: 0.1119826887 | H14: 1.074758777 | J14: =SUM(J12:J13) -> 339.2869274 | K14: =SUM(K12:K13) -> 350.6860171 | L14: =SUM(L12:L13) -> 362.5626908 | M14: =SUM(M12:M13) -> 374.9490517 | N14: =SUM(N12:N13) -> 387.8798763
B15: Taxes | C15: =-SUMIFS('1.1'!$E:$E,'1.1'!$C:$C,'P&L'!C$5,'1.1'!$F:$F,'P&L'!$B15) -> -207.52 | D15: =-SUMIFS('1.1'!$E:$E,'1.1'!$C:$C,'P&L'!D$5,'1.1'!$F:$F,'P&L'!$B15) -> -209.98 | E15: =-SUMIFS('1.1'!$E:$E,'1.1'!$C:$C,'P&L'!E$5,'1.1'!$F:$F,'P&L'!$B15) -> -208.58 | G15: 0.01185427911 | H15: -0.006667301648 | J15: =J14*$J37 -> -118.7504246 | K15: =K14*$J37 -> -122.740106 | L15: -126.8969418 | M15: -131.2321681 | N15: -135.7579567
B16: Net Income | C16: =SUM(C14:C15) -> 14.3 | D16: 36.68 | E16: 303.18 | G16: 1.565034965 | H16: 7.265539804 | J16: =SUM(J14:J15) -> 220.5365028 | K16: =SUM(K14:K15) -> 227.9459111 | L16: =SUM(L14:L15) -> 235.665749 | M16: =SUM(M14:M15) -> 243.7168836 | N16: =SUM(N14:N15) -> 252.1219196
B18: Scenarios:
B19: Revenue % Growth
B20: Selected Case | J20: =CHOOSE(MATCH($C$3,$B$21:$B$23,0),J21,J22,J23) -> 0.02 | K20: =CHOOSE(MATCH($C$3,$B$21:$B$23,0),K21,K22,K23) -> 0.02 | L20: 0.02 | M20: 0.02 | N20: 0.02
B21: Best Case | J21: =J22+0.01 -> 0.03 | K21: =K22+0.01 -> 0.03 | L21: 0.03 | M21: 0.03 | N21: 0.03
B22: Base Case | J22: 0.02 | K22: 0.02 | L22: 0.02 | M22: 0.02 | N22: 0.02
B23: Worst Case | J23: =J22-0.01 -> 0.01 | K23: =K22-0.01 -> 0.01 | L23: 0.01 | M23: 0.01 | N23: 0.01
B25: COGS as % of Revenues
B26: Selected Case | J26: =CHOOSE(MATCH($C$3,$B$21:$B$23,0),J27,J28,J29) -> -0.4642030072 | K26: =CHOOSE(MATCH($C$3,$B$21:$B$23,0),K27,K28,K29) -> -0.4642030072 | L26: =CHOOSE(MATCH($C$3,$B$21:$B$23,0),L27,L28,L29) -> -0.4642030072 | M26: =CHOOSE(MATCH($C$3,$B$21:$B$23,0),M27,M28,M29) -> -0.4642030072 | N26: =CHOOSE(MATCH($C$3,$B$21:$B$23,0),N27,N28,N29) -> -0.4642030072
B27: Best Case | C27: =C$7/C$6 -> -0.4794661191 | D27: =D$7/D$6 -> -0.4634718499 | E27: -0.4496710526 | J27: =J28+1% -> -0.4542030072 | K27: =K28+1% -> -0.4542030072 | L27: =L28+1% -> -0.4542030072 | M27: -0.4542030072 | N27: -0.4542030072
B28: Base Case | C28: =C$7/C$6 -> -0.4794661191 | D28: -0.4634718499 | E28: -0.4496710526 | J28: =AVERAGE($C$28:$E$28) -> -0.4642030072 | K28: =AVERAGE($C$28:$E$28) -> -0.4642030072 | L28: =AVERAGE($C$28:$E$28) -> -0.4642030072 | M28: -0.4642030072 | N28: -0.4642030072
B29: Worst Case | C29: -0.4794661191 | D29: -0.4634718499 | E29: -0.4496710526 | J29: =J28-1% -> -0.4742030072 | K29: =K28-1% -> -0.4742030072 | L29: =L28-1% -> -0.4742030072 | M29: -0.4742030072 | N29: -0.4742030072
B31: Opex as % of Revenues
B32: Selected Case | J32: =OFFSET(J32,MATCH($C$3,$B$21:$B$23,0),0) -> -0.3945266249 | K32: =OFFSET(K32,MATCH($C$3,$B$21:$B$23,0),0) -> -0.3945266249 | L32: -0.3945266249 | M32: -0.3945266249 | N32: -0.3945266249
B33: Best Case | C33: =C$9/C$6 -> -0.4148459959 | D33: -0.4173391421 | E33: -0.3513947368 | J33: -0.35 | K33: -0.35 | L33: -0.35 | M33: -0.35 | N33: -0.35
B34: Base Case | C34: -0.4148459959 | D34: -0.4173391421 | E34: -0.3513947368 | J34: =AVERAGE($C$34:$E$34) -> -0.3945266249 | K34: =AVERAGE($C$34:$E$34) -> -0.3945266249 | L34: -0.3945266249 | M34: -0.3945266249 | N34: -0.3945266249
B35: Worst Case | C35: -0.4148459959 | D35: -0.4173391421 | E35: -0.3513947368 | J35: -0.41 | K35: -0.41 | L35: -0.41 | M35: -0.41 | N35: -0.41
B37: Taxes % | J37: -0.35 | K37: -0.35 | L37: -0.35 | M37: -0.35 | N37: -0.35

Sheet BS
B1: Balance Sheet
F3: Forecast
B4: $ in MM | C4: 2014-12-31 | D4: 2015-12-31 | E4: 2016-12-31 | F4: 2017-12-31 | G4: 2018-12-31 | H4: 2019-12-31 | I4: 2020-12-31 | J4: 2021-12-31
B5: Trade Receivables | C5: =OFFSET('BS 2014'!$A$1,MATCH(BS!B5,'BS 2014'!$A:$A,0)-1,MATCH(BS!C$4,'BS 2014'!$1:$1,0)-1) -> 143.9 | D5: =INDEX('BS 2015'!$1:$1048576,MATCH(BS!$B5,'BS 2015'!$A:$A,0),MATCH(BS!D$4,'BS 2015'!$1:$1,0)) -> 154.8 | E5: =INDEX('BS 2016'!$1:$1048576,MATCH(BS!$B5,'BS 2016'!$A:$A,0),MATCH(BS!E$4,'BS 2016'!$1:$1,0)) -> 169.3 | F5: =F19*'P&L'!J6/360 -> 162.0835252 | G5: =G19*'P&L'!K6/360 -> 165.3251957 | H5: =H19*'P&L'!L6/360 -> 168.6316996 | I5: =I19*'P&L'!M6/360 -> 172.0043336 | J5: =J19*'P&L'!N6/360 -> 175.4444203
B6: Inventory | C6: =OFFSET('BS 2014'!$A$1,MATCH(BS!B6,'BS 2014'!$A:$A,0)-1,MATCH(BS!C$4,'BS 2014'!$1:$1,0)-1) -> 85 | D6: =INDEX('BS 2015'!$1:$1048576,MATCH(BS!$B6,'BS 2015'!$A:$A,0),MATCH(BS!D$4,'BS 2015'!$1:$1,0)) -> 92 | E6: =INDEX('BS 2016'!$1:$1048576,MATCH(BS!$B6,'BS 2016'!$A:$A,0),MATCH(BS!E$4,'BS 2016'!$1:$1,0)) -> 110 | F6: =-F21*'P&L'!J$7/360 -> 99.63588219 | G6: =-G21*'P&L'!K$7/360 -> 101.6285998 | H6: =-H21*'P&L'!L$7/360 -> 103.6611718 | I6: =-I21*'P&L'!M$7/360 -> 105.7343953 | J6: =-J21*'P&L'!N$7/360 -> 107.8490832
B7: PP&E | C7: =OFFSET('BS 2014'!$A$1,MATCH(BS!B7,'BS 2014'!$A:$A,0)-1,MATCH(BS!C$4,'BS 2014'!$1:$1,0)-1) -> 632.5 | D7: =INDEX('BS 2015'!$1:$1048576,MATCH(BS!$B7,'BS 2015'!$A:$A,0),MATCH(BS!D$4,'BS 2015'!$1:$1,0)) -> 632.5 | E7: =INDEX('BS 2016'!$1:$1048576,MATCH(BS!$B7,'BS 2016'!$A:$A,0),MATCH(BS!E$4,'BS 2016'!$1:$1,0)) -> 659.5 | F7: ='FA Roll Forward PPE'!F8 -> 673.5762846 | G7: ='FA Roll Forward PPE'!G8 -> 687.9530116 | H7: ='FA Roll Forward PPE'!H8 -> 702.6365937 | I7: ='FA Roll Forward PPE'!I8 -> 717.6335803 | J7: ='FA Roll Forward PPE'!J8 -> 732.9506606 | K7: FA Rollforward
B8: Cash | C8: =OFFSET('BS 2014'!$A$1,MATCH(BS!B8,'BS 2014'!$A:$A,0)-1,MATCH(BS!C$4,'BS 2014'!$1:$1,0)-1) -> 24.8 | D8: =INDEX('BS 2015'!$1:$1048576,MATCH(BS!$B8,'BS 2015'!$A:$A,0),MATCH(BS!D$4,'BS 2015'!$1:$1,0)) -> 21.8 | E8: =INDEX('BS 2016'!$1:$1048576,MATCH(BS!$B8,'BS 2016'!$A:$A,0),MATCH(BS!E$4,'BS 2016'!$1:$1,0)) -> 220 | F8: =E8+'Cash Flow'!C19 -> 337.2873201 | G8: =F8+'Cash Flow'!D19 -> 412.2603387 | H8: =G8+'Cash Flow'!E19 -> 487.5716948 | I8: =H8+'Cash Flow'!F19 -> 563.0604309 | J8: =I8+'Cash Flow'!G19 -> 638.5473383 | K8: Cash Flow
B9: Other assets | C9: =OFFSET('BS 2014'!$A$1,MATCH(BS!B9,'BS 2014'!$A:$A,0)-1,MATCH(BS!C$4,'BS 2014'!$1:$1,0)-1) -> 45.9 | D9: =INDEX('BS 2015'!$1:$1048576,MATCH(BS!$B9,'BS 2015'!$A:$A,0),MATCH(BS!D$4,'BS 2015'!$1:$1,0)) -> 46.9 | E9: =INDEX('BS 2016'!$1:$1048576,MATCH(BS!$B9,'BS 2016'!$A:$A,0),MATCH(BS!E$4,'BS 2016'!$1:$1,0)) -> 68 | F9: =F22*'P&L'!J$6 -> 55.60147646 | G9: =G22*'P&L'!K$6 -> 56.71350599 | H9: =H22*'P&L'!L$6 -> 57.84777611 | I9: =I22*'P&L'!M$6 -> 59.00473163 | J9: =J22*'P&L'!N$6 -> 60.18482626
B10: Assets | C10: =SUM(C5:C9) -> 932.1 | D10: =SUM(D5:D9) -> 948 | E10: 1226.8 | F10: =SUM(F5:F9) -> 1328.184489 | G10: =SUM(G5:G9) -> 1423.880652 | H10: =SUM(H5:H9) -> 1520.348936 | I10: =SUM(I5:I9) -> 1617.437472 | J10: =SUM(J5:J9) -> 1714.976329
B12: Trade Payables | C12: =OFFSET('BS 2014'!$A$1,MATCH(BS!B12,'BS 2014'!$A:$A,0)-1,MATCH(BS!C$4,'BS 2014'!$1:$1,0)-1) -> 68 | D12: =INDEX('BS 2015'!$1:$1048576,MATCH(BS!$B12,'BS 2015'!$A:$A,0),MATCH(BS!D$4,'BS 2015'!$1:$1,0)) -> 68.9 | E12: =INDEX('BS 2016'!$1:$1048576,MATCH(BS!$B12,'BS 2016'!$A:$A,0),MATCH(BS!E$4,'BS 2016'!$1:$1,0)) -> 68.9 | F12: =-F20*'P&L'!J$7/360 -> 71.37428256 | G12: =-G20*'P&L'!K$7/360 -> 72.80176821 | H12: =-H20*'P&L'!L$7/360 -> 74.25780357 | I12: =-I20*'P&L'!M$7/360 -> 75.74295964 | J12: =-J20*'P&L'!N$7/360 -> 77.25781884
B13: Provisions | C13: =OFFSET('BS 2014'!$A$1,MATCH(BS!B13,'BS 2014'!$A:$A,0)-1,MATCH(BS!C$4,'BS 2014'!$1:$1,0)-1) -> 32.5 | D13: =INDEX('BS 2015'!$1:$1048576,MATCH(BS!$B13,'BS 2015'!$A:$A,0),MATCH(BS!D$4,'BS 2015'!$1:$1,0)) -> 28.7 | E13: =INDEX('BS 2016'!$1:$1048576,MATCH(BS!$B13,'BS 2016'!$A:$A,0),MATCH(BS!E$4,'BS 2016'!$1:$1,0)) -> 28.7 | F13: =$E$13 -> 28.7 | G13: =$E$13 -> 28.7 | H13: 28.7 | I13: 28.7 | J13: 28.7 | K13: flat provisions
B14: Financial Liabilities | C14: =OFFSET('BS 2014'!$A$1,MATCH(BS!B14,'BS 2014'!$A:$A,0)-1,MATCH(BS!C$4,'BS 2014'!$1:$1,0)-1) -> 615.8 | D14: =INDEX('BS 2015'!$1:$1048576,MATCH(BS!$B14,'BS 2015'!$A:$A,0),MATCH(BS!D$4,'BS 2015'!$1:$1,0)) -> 610.4 | E14: =INDEX('BS 2016'!$1:$1048576,MATCH(BS!$B14,'BS 2016'!$A:$A,0),MATCH(BS!E$4,'BS 2016'!$1:$1,0)) -> 605 | F14: ='Financial Liabilities'!F8 -> 565.1788456 | G14: ='Financial Liabilities'!G8 -> 521.7737873 | H14: ='Financial Liabilities'!H8 -> 474.4622738 | I14: ='Financial Liabilities'!I8 -> 422.892724 | J14: ='Financial Liabilities'!J8 -> 366.6819148 | K14: Financial Liabilities
B15: Other liabilities | C15: =OFFSET('BS 2014'!$A$1,MATCH(BS!B15,'BS 2014'!$A:$A,0)-1,MATCH(BS!C$4,'BS 2014'!$1:$1,0)-1) -> 48.3 | D15: =INDEX('BS 2015'!$1:$1048576,MATCH(BS!$B15,'BS 2015'!$A:$A,0),MATCH(BS!D$4,'BS 2015'!$1:$1,0)) -> 43.3 | E15: =INDEX('BS 2016'!$1:$1048576,MATCH(BS!$B15,'BS 2016'!$A:$A,0),MATCH(BS!E$4,'BS 2016'!$1:$1,0)) -> 38.9 | F15: =F23*'P&L'!J$6 -> 45.30945872 | G15: =G23*'P&L'!K$6 -> 46.21564789 | H15: =H23*'P&L'!L$6 -> 47.13996085 | I15: =I23*'P&L'!M$6 -> 48.08276007 | J15: =J23*'P&L'!N$6 -> 49.04441527
B16: Equity | C16: =OFFSET('BS 2014'!$A$1,MATCH(BS!B16,'BS 2014'!$A:$A,0)-1,MATCH(BS!C$4,'BS 2014'!$1:$1,0)-1) -> 167.5 | D16: =INDEX('BS 2015'!$1:$1048576,MATCH(BS!$B16,'BS 2015'!$A:$A,0),MATCH(BS!D$4,'BS 2015'!$1:$1,0)) -> 196.7 | E16: =INDEX('BS 2016'!$1:$1048576,MATCH(BS!$B16,'BS 2016'!$A:$A,0),MATCH(BS!E$4,'BS 2016'!$1:$1,0)) -> 485.3 | F16: ='Equity Schedule'!F9 -> 617.6219017 | G16: ='Equity Schedule'!G9 -> 754.3894484 | H16: ='Equity Schedule'!H9 -> 895.7888978 | I16: ='Equity Schedule'!I9 -> 1042.019028 | J16: ='Equity Schedule'!J9 -> 1193.29218 | K16: Equity Schedule
B17: Liabilities and Equity | C17: =SUM(C12:C16) -> 932.1 | D17: =SUM(D12:D16) -> 948 | E17: 1226.8 | F17: =SUM(F12:F16) -> 1328.184489 | G17: =SUM(G12:G16) -> 1423.880652 | H17: =SUM(H12:H16) -> 1520.348936 | I17: =SUM(I12:I16) -> 1617.437472 | J17: =SUM(J12:J16) -> 1714.976329
B19: DSO | C19: =(C5/'P&L'!C6)*360 -> 17.72895277 | D19: =(D5/'P&L'!D6)*360 -> 18.67560322 | E19: =(E5/'P&L'!E6)*360 -> 20.04868421 | F19: =AVERAGE($C19:$E19) -> 18.81774673 | G19: =AVERAGE($C19:$E19) -> 18.81774673 | H19: 18.81774673 | I19: 18.81774673 | J19: 18.81774673
B20: DPO | C20: =-(C12/'P&L'!C$7)*360 -> 17.4732334 | D20: =-(D12/'P&L'!D$7)*360 -> 17.93492408 | E20: =-(E12/'P&L'!E$7)*360 -> 18.14484272 | F20: =AVERAGE($C20:$E20) -> 17.85100007 | G20: 17.85100007 | H20: 17.85100007 | I20: 17.85100007 | J20: 17.85100007
B21: DIO | C21: =-(C6/'P&L'!C$7)*360 -> 21.84154176 | D21: =-(D6/'P&L'!D$7)*360 -> 23.94793926 | E21: =-(E6/'P&L'!E$7)*360 -> 28.96854426 | F21: 24.91934176 | G21: 24.91934176 | H21: 24.91934176 | I21: 24.91934176 | J21: 24.91934176
B22: Other Assets % | C22: =C9/'P&L'!C$6 -> 0.01570841889 | D22: =D9/'P&L'!D$6 -> 0.01571715818 | E22: =E9/'P&L'!E$6 -> 0.02236842105 | F22: 0.01793133271 | G22: 0.01793133271 | H22: 0.01793133271 | I22: 0.01793133271 | J22: 0.01793133271
B23: Other Liabilities % | C23: =C15/'P&L'!C$6 -> 0.01652977413 | D23: =D15/'P&L'!D$6 -> 0.01451072386 | E23: =E15/'P&L'!E$6 -> 0.01279605263 | F23: 0.01461218354 | G23: 0.01461218354 | H23: 0.01461218354 | I23: 0.01461218354 | J23: 0.01461218354
B27: Check | C27: =C10-C17 -> 0 | D27: =D10-D17 -> 0 | E27: =E10-E17 -> 0 | F27: =F10-F17 -> 0 | G27: 0 | H27: 0 | I27: 0 | J27: 0

Sheet FA Roll Forward PPE
B1: Fixed Asset Roll Forward
F3: Forecast
B4: $ in MM | C4: 2014-12-31 | D4: 2015-12-31 | E4: 2016-12-31 | F4: 2017-12-31 | G4: 2018-12-31 | H4: 2019-12-31 | I4: 2020-12-31 | J4: 2021-12-31
B5: Beginning PP&E | D5: =BS!C7 -> 632.5 | E5: =BS!D7 -> 632.5 | F5: =E8 -> 659.5 | G5: =F8 -> 673.5762846 | H5: 687.9530116 | I5: 702.6365937 | J5: 717.6335803
B6: D&A | D6: ='P&L'!D11 -> -44 | E6: ='P&L'!E11 -> -41 | F6: =F$5*F10 -> -44.31422925 | G6: =G$5*G10 -> -45.26006655 | H6: -46.22609169 | I6: -47.21273554 | J6: -48.2204382
B7: Capex | D7: =D8-D6-D5 -> 44 | E7: =E8-E6-E5 -> 68 | F7: =F$5*F11 -> 58.39051383 | G7: 59.63679358 | H7: 60.90967375 | I7: 62.20972213 | J7: 63.53751857
B8: Ending PP&E | C8: =SUM(C5:C7) -> 0 | D8: =BS!D7 -> 632.5 | E8: =BS!E7 -> 659.5 | F8: =SUM(F5:F7) -> 673.5762846 | G8: 687.9530116 | H8: 702.6365937 | I8: 717.6335803 | J8: 732.9506606
B10: D&A as % of Beg PP&E | D10: =D6/D$5 -> -0.06956521739 | E10: =E6/E$5 -> -0.06482213439 | F10: =AVERAGE($D10:$E10) -> -0.06719367589 | G10: =AVERAGE($D10:$E10) -> -0.06719367589 | H10: -0.06719367589 | I10: -0.06719367589 | J10: -0.06719367589
B11: Capex as % of Beg PP&E | D11: =D7/D$5 -> 0.06956521739 | E11: =E7/E$5 -> 0.1075098814 | F11: =AVERAGE($D11:$E11) -> 0.08853754941 | G11: 0.08853754941 | H11: 0.08853754941 | I11: 0.08853754941 | J11: 0.08853754941

Sheet Financial Liabilities
B1: Financial Liabilities
F3: Forecast
B4: $ in MM | C4: 2014-12-31 | D4: 2015-12-31 | E4: 2016-12-31 | F4: 2017-12-31 | G4: 2018-12-31 | H4: 2019-12-31 | I4: 2020-12-31 | J4: 2021-12-31
B5: Beginning Debt | D5: =C8 -> 615.8 | E5: =D8 -> 610.4 | F5: =E8 -> 605 | G5: 565.1788456 | H5: 521.7737873 | I5: 474.4622738 | J5: 422.892724
B6: New Debt | D6: 0 | E6: 0 | F6: 0 | G6: 0 | H6: 0 | I6: 0 | J6: 0
B7: Principal Repayments | D7: =D8-D5 -> -5.4 | E7: =E8-E5 -> -5.4 | F7: =C18 -> -39.82115439 | G7: =D18 -> -43.40505829 | H7: -47.31151354 | I7: -51.56954975 | J7: -56.21080923
B8: Ending Debt | C8: =BS!C14 -> 615.8 | D8: =BS!D14 -> 610.4 | E8: =BS!E14 -> 605 | F8: =F5+F7 -> 565.1788456 | G8: =G5+G7 -> 521.7737873 | H8: 474.4622738 | I8: 422.892724 | J8: 366.6819148
B10: Debt to be repaid (in years) | C10: 10
B11: I/R | C11: 0.09
B12: Annual Payment | C12: =PMT(C11,C10,E8) -> -94.27115439
A15: Period | C15: 1 | D15: 2 | E15: 3 | F15: 4 | G15: 5 | H15: 6 | I15: 7 | J15: 8 | K15: 9 | L15: 10
B16: Payment | C16: =$C$12 -> -94.27115439 | D16: =$C$12 -> -94.27115439 | E16: -94.27115439 | F16: -94.27115439 | G16: -94.27115439 | H16: -94.27115439 | I16: -94.27115439 | J16: -94.27115439 | K16: -94.27115439 | L16: -94.27115439
B17: Interest Expense | C17: =IPMT($C$11,C$15,$C$10,$E$8,0) -> -54.45 | D17: =IPMT($C$11,D$15,$C$10,$E$8,0) -> -50.8660961 | E17: -46.95964086 | F17: -42.70160464 | G17: -38.06034516 | H17: -33.00137233 | I17: -27.48709195 | J17: -21.47652632 | K17: -14.9250098 | L17: -7.783856785
B18: Debt Repayment | C18: =PPMT($C$11,C$15,$C$10,$E$8,0) -> -39.82115439 | D18: =PPMT($C$11,D$15,$C$10,$E$8,0) -> -43.40505829 | E18: -47.31151354 | F18: -51.56954975 | G18: -56.21080923 | H18: -61.26978206 | I18: -66.78406245 | J18: -72.79462807 | K18: -79.3461446 | L18: -86.48729761
B19: Residual Debt | C19: =E8+C18 -> 565.1788456 | D19: =C19+D18 -> 521.7737873 | E19: =D19+E18 -> 474.4622738 | F19: 422.892724 | G19: 366.6819148 | H19: 305.4121327 | I19: 238.6280703 | J19: 165.8334422 | K19: 86.48729761 | L19: 1.98951966e-13

Sheet Equity Schedule
B1: Equity Schedule
F3: Forecast
B4: $ in MM | C4: 2014-12-31 | D4: 2015-12-31 | E4: 2016-12-31 | F4: 2017-12-31 | G4: 2018-12-31 | H4: 2019-12-31 | I4: 2020-12-31 | J4: 2021-12-31
B5: Beginning Equity | F5: =E9 -> 485.3 | G5: =F9 -> 617.6219017 | H5: 754.3894484 | I5: 895.7888978 | J5: 1042.019028
B6: Increase of Capital | F6: 0 | G6: 0 | H6: 0 | I6: 0 | J6: 0
B7: Net Income (Loss) | F7: ='P&L'!J16 -> 220.5365028 | G7: ='P&L'!K16 -> 227.9459111 | H7: ='P&L'!L16 -> 235.665749 | I7: ='P&L'!M16 -> 243.7168836 | J7: ='P&L'!N16 -> 252.1219196
B8: Dividends | F8: =IF(F7>0,-F7*F11,"0") -> -88.21460113 | G8: =IF(G7>0,-G7*G11,"0") -> -91.17836446 | H8: -94.26629962 | I8: -97.48675344 | J8: -100.8487678
B9: Ending Equity | C9: =SUM(C5:C8) -> 0 | E9: =BS!E16 -> 485.3 | F9: =SUM(F5:F8) -> 617.6219017 | G9: =SUM(G5:G8) -> 754.3894484 | H9: 895.7888978 | I9: 1042.019028 | J9: 1193.29218
B11: Dividends as % of NI | F11: 0.4 | G11: 0.4 | H11: 0.4 | I11: 0.4 | J11: 0.4

Sheet Cash Flow
B1: Cash Flow
E3: Forecast
B4: $ in MM | C4: 2017 | D4: 2018 | E4: 2019 | F4: 2020 | G4: 2021
B5: EBITDA | C5: ='P&L'!J10 -> 438.0511567 | D5: ='P&L'!K10 -> 446.8121798 | E5: ='P&L'!L10 -> 455.7484234 | F5: ='P&L'!M10 -> 464.8633919 | G5: ='P&L'!N10 -> 474.1606597
B6: Interest Expenses | C6: ='P&L'!J13 -> -54.45 | D6: ='P&L'!K13 -> -50.8660961 | E6: ='P&L'!L13 -> -46.95964086 | F6: ='P&L'!M13 -> -42.70160464 | G6: ='P&L'!N13 -> -38.06034516
B7: Taxes | C7: ='P&L'!J15 -> -118.7504246 | D7: ='P&L'!K15 -> -122.740106 | E7: ='P&L'!L15 -> -126.8969418 | F7: ='P&L'!M15 -> -131.2321681 | G7: ='P&L'!N15 -> -135.7579567
B8: Change in Trade Receivables | C8: =-(BS!F5-BS!E5) -> 7.216474804 | D8: =-(BS!G5-BS!F5) -> -3.241670504 | E8: =-(BS!H5-BS!G5) -> -3.306503914 | F8: =-(BS!I5-BS!H5) -> -3.372633992 | G8: =-(BS!J5-BS!I5) -> -3.440086672
B9: Change in Inventory | C9: =-(BS!F6-BS!E6) -> 10.36411781 | D9: =-(BS!G6-BS!F6) -> -1.992717644 | E9: =-(BS!H6-BS!G6) -> -2.032571997 | F9: =-(BS!I6-BS!H6) -> -2.073223437 | G9: =-(BS!J6-BS!I6) -> -2.114687905
B10: Change in Trade Payables | C10: =BS!F12-BS!E12 -> 2.474282558 | D10: =BS!G12-BS!F12 -> 1.427485651 | E10: =BS!H12-BS!G12 -> 1.456035364 | F10: =BS!I12-BS!H12 -> 1.485156071 | G10: =BS!J12-BS!I12 -> 1.514859193
B11: Change in Other Assets | C11: =-(BS!F9-BS!E9) -> 12.39852354 | D11: =-(BS!G9-BS!F9) -> -1.112029529 | E11: =-(BS!H9-BS!G9) -> -1.13427012 | F11: =-(BS!I9-BS!H9) -> -1.156955522 | G11: =-(BS!J9-BS!I9) -> -1.180094633
B12: Change in Other Liabilities | C12: =BS!F15-BS!E15 -> 6.40945872 | D12: =BS!G15-BS!F15 -> 0.9061891744 | E12: =BS!H15-BS!G15 -> 0.9243129579 | F12: =BS!I15-BS!H15 -> 0.9427992171 | G12: =BS!J15-BS!I15 -> 0.9616552014
B13: Capex | C13: =-'FA Roll Forward PPE'!F7 -> -58.39051383 | D13: =-'FA Roll Forward PPE'!G7 -> -59.63679358 | E13: =-'FA Roll Forward PPE'!H7 -> -60.90967375 | F13: =-'FA Roll Forward PPE'!I7 -> -62.20972213 | G13: =-'FA Roll Forward PPE'!J7 -> -63.53751857
B14: Operation Cash Flow | C14: =SUM(C5:C13) -> 245.3230757 | D14: =SUM(D5:D13) -> 209.5564413 | E14: 216.8891693 | F14: 224.5450393 | G14: 232.5464844
B15: Dividends | C15: ='Equity Schedule'!F8 -> -88.21460113 | D15: ='Equity Schedule'!G8 -> -91.17836446 | E15: ='Equity Schedule'!H8 -> -94.26629962 | F15: ='Equity Schedule'!I8 -> -97.48675344 | G15: ='Equity Schedule'!J8 -> -100.8487678
B16: Change in Financial Liabilities | C16: ='Financial Liabilities'!F8-'Financial Liabilities'!E8 -> -39.82115439 | D16: ='Financial Liabilities'!G8-'Financial Liabilities'!F8 -> -43.40505829 | E16: ='Financial Liabilities'!H8-'Financial Liabilities'!G8 -> -47.31151354 | F16: ='Financial Liabilities'!I8-'Financial Liabilities'!H8 -> -51.56954975 | G16: ='Financial Liabilities'!J8-'Financial Liabilities'!I8 -> -56.21080923
B17: Change in Provisions | C17: =BS!F13-BS!E13 -> 0 | D17: =BS!G13-BS!F13 -> 0 | E17: =BS!H13-BS!G13 -> 0 | F17: =BS!I13-BS!H13 -> 0 | G17: =BS!J13-BS!I13 -> 0
B18: Change in Equity | C18: ='Equity Schedule'!F9-'Equity Schedule'!E9-'Equity Schedule'!F7-'Equity Schedule'!F8 -> 0 | D18: ='Equity Schedule'!G9-'Equity Schedule'!F9-'Equity Schedule'!G7-'Equity Schedule'!G8 -> 0 | E18: ='Equity Schedule'!H9-'Equity Schedule'!G9-'Equity Schedule'!H7-'Equity Schedule'!H8 -> 0 | F18: ='Equity Schedule'!I9-'Equity Schedule'!H9-'Equity Schedule'!I7-'Equity Schedule'!I8 -> 0 | G18: ='Equity Schedule'!J9-'Equity Schedule'!I9-'Equity Schedule'!J7-'Equity Schedule'!J8 -> 1.136868377e-13
B19: Net Cash Flow | C19: =SUM(C14:C18) -> 117.2873201 | D19: =SUM(D14:D18) -> 74.97301852 | E19: 75.31135612 | F19: 75.48873615 | G19: 75.48690735
